bitfinex/quotes_SOLUSD_20241229
["timestamp","ask_amount","ask_price","bid_price","bid_amount"]
[1735462619783,20.0,195.77,195.67,20.0]
[1735462622788,20.0,195.77,195.65,20.0]
[1735462622974,1.5537,195.76,195.65,20.0]
[1735462632590,1.5537,195.76,195.66,0.76640085]
[1735462633477,1.5537,195.78,195.67,23.776884]
[1735462633879,20.0,195.77,195.67,23.776884]
[1735462635486,20.0,195.77,195.69,23.776884]
[1735462635706,20.0,195.77,195.68,0.76630921]
[1735462635892,20.0,195.77,195.66,20.76626]
[1735462636723,20.0,195.77,195.66,0.76626]
[1735462637497,20.0,195.77,195.67,23.776884]
[1735462637694,20.0,195.77,195.66,0.76626]
[1735462645427,20.0,195.77,195.65,20.0]
[1735462646722,20.0,195.76,195.65,20.0]
[1735462648128,20.0,195.75,195.65,20.0]
[1735462649524,1.5537,195.78,195.65,20.0]
[1735462649730,20.0,195.76,195.66,0.76642222]
[1735462653732,1.5537,195.78,195.66,0.76642222]
[1735462654131,20.0,195.77,195.66,0.76642222]
[1735462655457,20.0,195.77,195.67,23.776884]
[1735462657831,20.0,195.77,195.68,0.76633015]
[1735462658960,20.0,195.77,195.67,0.76637039]
[1735462665533,1.5537,195.78,195.7,23.776884]
[1735462665935,1.5537,195.78,195.68,23.776884]
[1735462672562,1.5537,195.78,195.71,20.0]
[1735462680566,11.53071689,195.81,195.72,23.776884]
[1735462682771,11.53071689,195.81,195.69,23.776884]
[1735462697385,20.0,195.82,195.69,23.776884]
[1735462697566,20.0,195.81,195.69,23.776884]
[1735462698477,1.5276,195.83,195.69,23.776884]
[1735462698676,7.81721849,195.83,195.73,23.776884]
[1735462699870,7.81721849,195.83,195.68,6.94335902]
[1735462700380,7.81721849,195.83,195.71,20.0]
[1735462708500,7.81721849,195.83,195.72,23.776884]
[1735462712992,1.5276,195.83,195.72,23.776884]
[1735462716996,9.55677364,195.83,195.72,23.776884]
[1735462720607,8.02917364,195.82,195.72,23.776884]
[1735462720891,8.02917364,195.82,195.71,20.0]
[1735462722681,8.02917364,195.81,195.71,20.0]
[1735462722889,8.02917364,195.82,195.71,20.0]
[1735462733514,8.02917364,195.82,195.72,23.776884]
[1735462734012,15.84639213,195.83,195.72,23.776884]
[1735462738407,15.84639213,195.83,195.69,23.776884]
[1735462741095,8.02917364,195.82,195.69,23.776884]
[1735462744497,8.02917364,195.82,195.68,7.7171]
[1735462744498,8.02917364,195.82,195.71,20.0]
[1735462745518,6.3897,195.81,195.68,1.5399]
[1735462745721,14.41887364,195.81,195.68,1.5399]
[1735462746918,14.41887364,195.81,195.66,20.0]
[1735462746919,1.5842,195.78,195.66,20.0]
[1735462747217,1.5842,195.78,195.67,23.776884]
[1735462747416,1.3141,195.78,195.67,23.776884]
[1735462749722,20.0,195.77,195.67,23.776884]
[1735462750600,20.0,195.77,195.66,20.0]
[1735462753227,6.3897,195.76,195.64,43.776884]
[1735462753527,6.3897,195.76,195.64,44.54332092]
[1735462763231,6.3897,195.76,195.64,0.76643692]
[1735462763424,80.8,195.75,195.58,10.01743992]
[1735462763616,80.8,195.75,195.59,0.76656047]
[1735462763817,80.8,195.75,195.6,23.776884]
[1735462764021,80.8,195.75,195.63,20.0]
[1735462767433,80.8,195.75,195.64,23.776884]
[1735462768512,6.3897,195.76,195.66,23.776884]
[1735462774118,6.3897,195.76,195.67,0.76640272]
[1735462776840,6.3897,195.76,195.68,23.776884]
[1735462777014,4.96927072,195.77,195.68,23.776884]
[1735462778442,4.96927072,195.77,195.65,23.776884]
[1735462778623,4.96927072,195.77,195.67,23.776884]
[1735462780740,4.96927072,195.77,195.67,20.0]
[1735462791461,4.96927072,195.77,195.68,23.776884]
[1735462801556,21.3141,195.78,195.68,23.776884]
[1735462803570,1.3141,195.78,195.68,23.776884]
[1735462810497,6.20504627,195.82,195.69,10.01743992]
[1735462810786,1.5166,195.83,195.74,23.776884]
[1735462813500,6.5256,195.85,195.77,20.0]
[1735462813779,6.5256,195.85,195.78,23.776884]
[1735462820490,6.25214284,195.88,195.78,23.776884]
[1735462822995,1.5166,195.88,195.78,23.776884]
[1735462827618,8.02917364,195.97,195.91,23.776884]
[1735462827774,8.02917364,195.97,195.93,10.01743992]
[1735462827980,8.02917364,195.97,195.96,10.01743992]
[1735462828795,1.6343,196.06,195.99,20.0]
[1735462829482,20.0,196.05,195.92,0.7651743]
[1735462829684,21.59,195.97,195.84,10.01743992]
[1735462829900,21.59,195.97,195.83,10.78307927]
[1735462830087,21.59,195.97,195.86,20.0]
[1735462830301,21.59,195.97,195.85,10.78307886]
[1735462830497,21.59,195.97,195.86,23.776884]
[1735462832688,21.59,195.97,195.88,23.776884]
[1735462835133,1.59,195.97,195.88,23.776884]
[1735462838426,21.59,195.97,195.88,23.776884]
[1735462840125,1.59,195.97,195.88,23.776884]
[1735462843609,21.59,195.97,195.77,16.10523992]
[1735462843807,21.59,195.97,195.8,20.0]
[1735462844511,21.59,195.97,195.79,10.01743992]
[1735462844707,21.59,195.97,195.81,2.28188989]
[1735462844930,21.59,195.97,195.81,12.29932981]
[1735462845103,21.59,195.97,195.85,20.0]
[1735462846220,21.59,195.97,195.82,23.776884]
[1735462851028,1.59,195.97,195.86,20.0]
[1735462851232,1.59,195.97,195.87,23.776884]
[1735462852232,21.59,195.97,195.87,23.776884]
[1735462865542,1.59,195.97,195.87,23.776884]
[1735462865722,6.5791,196.0,195.9,20.0]
[1735462872228,6.5791,196.0,195.88,20.0]
[1735462882759,20.0,195.97,195.85,6.0028]
[1735462886151,80.8,195.99,195.86,23.776884]
[1735462886343,88.82917364,195.99,195.86,23.776884]
[1735462886859,88.82917364,195.99,195.85,6.0028]
[1735462887455,1.612,195.98,195.84,20.0]
[1735462887628,88.82917364,195.99,195.81,1.5161]
[1735462887629,20.0,195.91,195.81,1.5161]
[1735462887836,1.612,195.92,195.81,1.5161]
[1735462888729,1.612,195.92,195.83,20.0]
[1735462893148,1.612,195.92,195.82,23.776884]
[1735462896068,1.612,195.92,195.82,23.776884]
[1735462900670,0.659466,195.92,195.82,23.776884]
[1735462913299,0.659466,195.92,195.73,0.76582719]
[1735462913300,20.0,195.91,195.76,1.6597]
[1735462913479,20.0,195.91,195.77,0.76594804]
[1735462913879,20.0,195.91,195.8,23.776884]
[1735462920584,20.0,195.91,195.78,20.0]
[1735462921513,20.0,195.91,195.8,20.0]
[1735462928407,20.0,195.91,195.81,23.776884]
[1735462932309,0.659466,195.92,195.81,23.776884]
[1735462935704,20.0,195.91,195.81,23.776884]
[1735462943021,20.0,195.91,195.76,1.6597]
[1735462943195,20.0,195.91,195.76,2.42563795]
[1735462943517,20.0,195.91,195.79,23.776884]
[1735462944313,20.0,195.91,195.8,20.0]
[1735462946120,20.0,195.91,195.79,23.776884]
[1735462952014,8.68863964,195.92,195.83,23.776884]
[1735462952519,0.659466,195.92,195.81,23.776884]
[1735462953522,0.659466,195.92,195.83,23.776884]
[1735462962130,6.4547,195.94,195.83,23.776884]
[1735462962344,88.82917364,195.95,195.87,23.776884]
[1735462962834,80.8,195.95,195.87,23.776884]
[1735462963009,9.64037364,195.97,195.87,23.776884]
[1735462963941,1.6112,195.97,195.87,23.776884]
[1735462964914,8.02917364,195.98,195.91,23.776884]
[1735462965715,6.5596,195.99,195.91,23.776884]
[1735462967239,8.02917364,196.01,195.91,23.776884]
[1735462968040,90.44037364,196.02,195.91,23.776884]
[1735462970435,90.44037364,196.02,195.87,6.2749]
[1735462970738,90.44037364,196.02,195.9,20.0]
[1735462973980,20.0,195.99,195.87,6.2749]
[1735462975046,20.0,195.99,195.84,0.76558018]
[1735462975424,20.0,195.99,195.85,43.776884]
[1735462975624,20.0,195.99,195.87,23.776884]
[1735462977239,6.1586,195.98,195.84,0.76558018]
[1735462977420,82.37,195.97,195.83,1.6089]
[1735462977828,82.37,195.97,195.85,20.0]
[1735462978368,20.0,195.94,195.8,20.0]
[1735462979152,20.0,195.95,195.84,20.0]
[1735462979866,20.0,195.94,195.84,20.0]
[1735462980942,20.0,195.94,195.8,20.0]
[1735462981147,20.0,195.94,195.84,20.0]
[1735462982051,20.0,195.94,195.83,23.776884]
[1735462982556,20.0,195.94,195.82,20.0]
[1735462982731,20.0,195.94,195.8,0.76581908]
[1735462982930,20.0,195.94,195.8,20.0]
[1735462983134,1.57,195.92,195.79,0.76587346]
[1735462983339,1.57,195.92,195.78,2.33518825]
[1735462983536,1.57,195.92,195.8,20.0]
[1735462995168,20.0,195.9,195.8,20.0]
[1735462997874,20.0,195.9,195.81,23.776884]
[1735463000590,20.0,195.9,195.8,20.0]
[1735463004282,1.57,195.92,195.8,20.0]
[1735463006881,20.0,195.9,195.78,2.33523341]
[1735463007060,1.20203064,195.89,195.73,1.5163]
[1735463007266,20.0,195.86,195.73,1.5163]
[1735463007564,20.0,195.86,195.75,20.0]
[1735463007963,20.0,195.86,195.76,23.776884]
[1735463011678,80.8,195.89,195.76,23.776884]
[1735463013483,20.0,195.86,195.76,23.776884]
[1735463015587,27.967,195.86,195.75,20.0]
[1735463018158,27.967,195.86,195.74,23.776884]
[1735463018362,27.967,195.86,195.73,2.28244578]
[1735463018563,27.967,195.86,195.73,1.5163]
[1735463019083,27.967,195.86,195.71,0.76622074]
[1735463019263,27.967,195.86,195.7,20.7662637]
[1735463019464,27.967,195.86,195.71,23.776884]
[1735463019687,39.22371634,195.86,195.71,23.776884]
[1735463023087,24.5431477,195.85,195.63,1.6159]
[1735463023381,24.5431477,195.85,195.55,7.03417205]
[1735463023382,1.607,195.74,195.55,13.39217205]
[1735463023583,20.0,195.68,195.55,13.39217205]
[1735463023772,20.0,195.63,195.53,1.6159]
[1735463023976,0.7662637,195.62,195.48,7.9739]
[1735463024187,13.03880549,195.62,195.48,7.9739]
[1735463024593,20.0,195.59,195.49,23.776884]
[1735463024888,0.7662637,195.58,195.48,7.9739]
[1735463025266,14.99523734,195.58,195.41,6.4133]
[1735463025473,6.48992429,195.57,195.42,0.2672385]
[1735463025689,0.95907652,195.56,195.42,0.2672385]
[1735463026190,0.95907652,195.56,195.44,20.0]
[1735463026507,0.95907652,195.56,195.42,0.2672385]
[1735463026683,0.95907652,195.56,195.44,20.0]
[1735463026888,20.0,195.55,195.41,6.4133]
[1735463027188,0.95919365,195.54,195.44,20.0]
[1735463027489,0.95919365,195.54,195.42,23.776884]
[1735463028188,20.95919365,195.54,195.42,23.776884]
[1735463029089,14.22897364,195.58,195.44,23.776884]
[1735463029273,80.8,195.68,195.44,23.776884]
[1735463029274,0.95886746,195.57,195.45,0.65147121]
[1735463029467,0.95886746,195.57,195.48,23.776884]
[1735463030080,0.95886746,195.57,195.47,0.65145255]
[1735463030386,0.95889161,195.6,195.47,0.65145255]
[1735463030582,0.95889161,195.6,195.46,20.0]
[1735463030781,5.46704105,195.59,195.47,0.65153312]
[1735463030972,0.95881912,195.58,195.47,0.65153312]
[1735463031871,0.95881912,195.58,195.48,0.65144563]
[1735463032889,0.95887053,195.61,195.48,0.65144563]
[1735463033185,0.95887053,195.61,195.46,0.65147735]
[1735463033580,0.95887053,195.61,195.5,20.0]
[1735463034999,0.95887053,195.61,195.48,0.65144505]
[1735463037201,0.95887053,195.61,195.5,20.0]
[1735463043795,0.95887053,195.61,195.51,30.60893118]
[1735463044001,0.95868848,195.63,195.54,20.0]
[1735463044899,0.9585651,195.64,195.54,20.0]
[1735463047582,23.776884,195.63,195.51,6.1808]
[1735463047805,0.95880321,195.62,195.51,6.1808]
[1735463050683,0.95880321,195.62,195.5,21.5908]
[1735463051604,0.95880321,195.62,195.51,20.0]
[1735463053514,0.95880321,195.62,195.5,1.5908]
[1735463053926,23.776884,195.61,195.5,1.5908]
[1735463054096,0.95892134,195.6,195.49,20.0]
[1735463055213,0.95892792,195.59,195.47,23.776884]
[1735463056125,0.95893914,195.58,195.47,23.776884]
[1735463056323,0.95891654,195.6,195.47,23.776884]
[1735463057414,30.392684,195.59,195.46,8.42321554]
[1735463057608,0.95893394,195.58,195.46,7.7716]
[1735463057811,0.95893394,195.58,195.38,15.38]
[1735463057812,20.0,195.54,195.4,21.6512]
[1735463058115,0.9592175,195.53,195.4,1.6512]
[1735463059915,6.0656,195.51,195.39,0.65178945]
[1735463060213,23.776884,195.49,195.35,1.6512]
[1735463060395,23.776884,195.47,195.35,1.6512]
[1735463060708,0.9595114,195.46,195.35,1.6512]
[1735463060914,0.9595114,195.46,195.37,20.0]
[1735463061311,0.9595114,195.46,195.32,10.01743992]
[1735463061516,0.95958408,195.45,195.35,20.0]
[1735463061709,0.95957945,195.47,195.35,20.0]
[1735463063293,0.95957945,195.47,195.33,30.01743992]
[1735463063501,0.95957945,195.47,195.37,20.0]
[1735463063996,0.95957945,195.47,195.38,23.776884]
[1735463064200,0.95937231,195.5,195.38,33.79432392]
[1735463065099,0.95937231,195.5,195.38,34.44667337]
[1735463067108,0.95937231,195.5,195.38,24.42923345]
[1735463067621,0.95937231,195.5,195.38,23.776884]
[1735463069822,0.95937231,195.5,195.38,23.92936877]
[1735463070426,0.95937231,195.5,195.39,7.5856]
[1735463071816,0.95937231,195.5,195.4,23.776884]
[1735463077432,0.95937231,195.5,195.39,1.5319]
[1735463078005,0.95937231,195.5,195.39,21.5319]
[1735463080233,0.95937231,195.5,195.39,1.5319]
[1735463080537,0.95937231,195.5,195.35,6.0537]
[1735463081336,0.95937231,195.5,195.36,23.776884]
[1735463085920,20.0,195.48,195.36,23.776884]
[1735463086128,0.95953228,195.47,195.36,23.776884]
[1735463087520,21.5033,195.46,195.34,1.5319]
[1735463087726,20.95969349,195.45,195.3,0.65312329]
[1735463087919,20.95969349,195.45,195.34,20.0]
[1735463088731,20.95969349,195.45,195.33,23.776884]
[1735463090432,20.95969349,195.45,195.32,20.65305841]
[1735463090641,0.95969349,195.45,195.32,20.65305841]
[1735463090943,0.95969349,195.45,195.34,20.0]
[1735463094244,0.95969349,195.45,195.33,20.0]
[1735463094540,0.95969349,195.45,195.34,20.0]
[1735463104548,0.95969349,195.45,195.35,23.776884]
[1735463104954,0.9594349,195.48,195.37,23.776884]
[1735463109859,8.98860854,195.48,195.37,23.776884]
[1735463111567,8.98860854,195.48,195.37,24.4295652]
[1735463112261,0.9594349,195.48,195.37,24.4295652]
[1735463112460,0.9594349,195.48,195.37,23.776884]
[1735463114567,2.0872349,195.49,195.37,23.776884]
[1735463114743,0.3068288,195.48,195.37,23.776884]
[1735463115652,20.3068288,195.48,195.37,23.776884]
[1735463120270,0.3068288,195.48,195.37,23.776884]
[1735463120645,0.3068288,195.5,195.37,23.776884]
[1735463121071,20.0,195.49,195.37,23.776884]
[1735463121270,0.3068288,195.48,195.37,23.776884]
[1735463122171,0.3068288,195.49,195.37,23.776884]
[1735463129361,8.33600244,195.49,195.37,23.776884]
[1735463129885,13.6135572,195.49,195.37,23.776884]
[1735463131076,13.6135572,195.49,195.36,8.1619]
[1735463131281,5.27755476,195.48,195.36,8.1619]
[1735463131597,0.3068288,195.47,195.36,1.5854]
[1735463131880,0.3068288,195.47,195.37,23.776884]
[1735463132183,0.3068288,195.47,195.36,1.5854]
[1735463132382,0.3068288,195.47,195.35,20.0]
[1735463133054,13.4910576,195.47,195.35,20.0]
[1735463133578,13.4910576,195.47,195.32,6.1553]
[1735463133783,8.21350284,195.47,195.33,23.776884]
[1735463134085,5.27755476,195.46,195.33,23.776884]
[1735463134253,0.3068288,195.45,195.33,23.776884]
[1735463138079,0.3068288,195.45,195.22,16.14777746]
[1735463138080,20.0,195.42,195.26,1.658]
[1735463138271,5.93202362,195.41,195.26,1.658]
[1735463139188,5.93202362,195.41,195.27,23.776884]
[1735463139364,13.96119726,195.41,195.3,20.0]
[1735463141489,13.96119726,195.41,195.29,23.776884]
[1735463141986,5.93202362,195.41,195.29,23.776884]
[1735463142283,5.93202362,195.41,195.29,33.79432392]
[1735463142474,0.3068288,195.41,195.32,20.0]
[1735463142661,0.3068288,195.41,195.31,6.1553]
[1735463142866,0.3068288,195.41,195.35,20.0]
[1735463143064,0.3068288,195.43,195.35,20.0]
[1735463143682,0.3068288,195.43,195.36,20.0]
[1735463145691,0.3068288,195.43,195.34,23.776884]
[1735463148892,0.3068288,195.43,195.32,23.776884]
[1735463149573,20.3068288,195.43,195.28,1.6555]
[1735463149772,20.0,195.42,195.29,23.776884]
[1735463149980,0.3068288,195.41,195.29,23.776884]
[1735463150501,0.3068288,195.41,195.28,1.6555]
[1735463150794,0.3068288,195.41,195.29,20.0]
[1735463151388,0.3068288,195.41,195.29,43.776884]
[1735463151894,0.3068288,195.41,195.29,20.0]
[1735463152094,20.3068288,195.41,195.29,20.0]
[1735463156491,20.3068288,195.41,195.29,43.776884]
[1735463156701,20.3068288,195.41,195.29,20.0]
[1735463159698,20.0,195.4,195.29,20.0]
[1735463159870,0.3068288,195.39,195.29,20.0]
[1735463160879,0.3068288,195.39,195.29,43.776884]
[1735463161086,0.3068288,195.39,195.3,23.776884]
[1735463162613,0.3068288,195.4,195.3,23.776884]
[1735463165884,0.3068288,195.4,195.29,20.0]
[1735463166084,0.3068288,195.4,195.3,20.0]
[1735463166279,0.3068288,195.43,195.3,20.0]
[1735463168905,0.3068288,195.43,195.32,20.0]
[1735463176295,0.3068288,195.43,195.33,23.776884]
[1735463178902,0.3068288,195.43,195.35,23.776884]
[1735463181658,0.3068288,195.45,195.35,23.776884]
[1735463185409,0.3068288,195.45,195.32,20.0]
[1735463185847,0.3068288,195.45,195.33,23.776884]
[1735463186352,8.33600244,195.45,195.33,23.776884]
[1735463187017,8.02917364,195.44,195.33,23.776884]
[1735463187316,0.3068288,195.43,195.33,23.776884]
[1735463190366,8.33600244,195.43,195.33,23.776884]
[1735463191839,8.33600244,195.43,195.29,6.4883]
[1735463192144,8.33600244,195.43,195.3,23.776884]
[1735463192747,1.5085,195.42,195.3,23.776884]
[1735463192939,0.3068288,195.41,195.3,23.776884]
[1735463194942,8.33600244,195.41,195.3,23.776884]
[1735463196557,8.02917364,195.4,195.3,23.776884]
[1735463196734,0.3068288,195.39,195.3,23.776884]
[1735463198152,0.3068288,195.39,195.29,6.4883]
[1735463198334,0.3068288,195.39,195.28,1.6555]
[1735463200462,0.3068288,195.39,195.29,23.776884]
[1735463201040,0.3068288,195.39,195.3,0.76781241]
[1735463201240,0.3068288,195.39,195.33,23.776884]
[1735463202366,0.3068288,195.41,195.33,23.776884]
[1735463205969,8.33600244,195.41,195.33,23.776884]
[1735463206169,8.33600244,195.41,195.28,2.4232982]
[1735463206338,8.33600244,195.41,195.3,20.0]
[1735463206837,0.3068288,195.41,195.31,23.776884]
[1735463208043,8.33600244,195.41,195.31,23.776884]
[1735463208770,8.33600244,195.41,195.28,1.6555]
[1735463208771,0.3068288,195.41,195.28,1.6555]
[1735463208945,0.3068288,195.41,195.29,23.776884]
[1735463209767,8.02917364,195.39,195.29,23.776884]
[1735463210066,0.3068288,195.38,195.29,23.776884]
[1735463213577,0.3068288,195.38,195.28,1.6555]
[1735463216548,0.3068288,195.38,195.29,23.776884]
[1735463216968,0.3068288,195.38,195.27,20.0]
[1735463219451,20.0,195.36,195.24,7.9642]
[1735463219651,0.3068288,195.35,195.24,7.9642]
[1735463219853,0.3068288,195.35,195.25,23.776884]
[1735463220467,20.0,195.34,195.25,23.776884]
[1735463220665,0.3068288,195.33,195.25,23.776884]
[1735463220866,0.3068288,195.35,195.25,23.776884]
[1735463221561,20.3068288,195.35,195.25,23.776884]
[1735463224777,20.0,195.34,195.25,23.776884]
[1735463224977,0.3068288,195.33,195.25,23.776884]
[1735463226365,0.3068288,195.34,195.25,23.776884]
[1735463229679,0.3068288,195.36,195.25,23.776884]
[1735463231662,0.3068288,195.36,195.27,23.776884]
[1735463233385,1.5421,195.37,195.27,23.776884]
[1735463233693,0.3068288,195.38,195.27,23.776884]
[1735463236887,8.33600244,195.38,195.27,23.776884]
[1735463237590,0.3068288,195.38,195.27,23.776884]
[1735463238383,8.33600244,195.38,195.27,23.776884]
[1735463238892,8.33600244,195.38,195.25,20.0]
[1735463239267,8.33600244,195.38,195.26,23.776884]
[1735463242369,8.02917364,195.37,195.26,23.776884]
[1735463242662,0.3068288,195.36,195.26,23.776884]
[1735463243676,0.3068288,195.36,195.28,23.776884]
[1735463244385,8.02917364,195.37,195.28,23.776884]
[1735463244586,8.02917364,195.37,195.3,23.776884]
[1735463245876,8.02917364,195.38,195.32,23.776884]
[1735463246889,0.3068288,195.42,195.32,23.776884]
[1735463247573,0.3068288,195.42,195.34,23.776884]
[1735463247779,0.3068288,195.43,195.34,23.776884]
[1735463249004,0.3068288,195.44,195.34,23.776884]
[1735463249219,8.02917364,195.45,195.38,23.776884]
[1735463250210,8.02917364,195.45,195.35,0.76763079]
[1735463250421,8.33600244,195.45,195.34,20.0]
[1735463250724,0.3068288,195.45,195.36,23.776884]
[1735463251318,0.3068288,195.47,195.36,23.776884]
[1735463252681,0.3068288,195.49,195.39,23.776884]
[1735463252886,0.3068288,195.49,195.39,24.54428924]
[1735463253616,0.3068288,195.49,195.39,23.776884]
[1735463257122,0.3068288,195.49,195.41,20.0]
[1735463257428,0.3068288,195.52,195.42,23.776884]
[1735463266372,20.0,195.5,195.38,7.9465]
[1735463266564,0.3068288,195.49,195.38,7.9465]
[1735463267435,20.0,195.49,195.39,23.776884]
[1735463267640,0.3068288,195.48,195.39,23.776884]
[1735463268169,1.6357,195.47,195.35,20.0]
[1735463268374,0.3068288,195.46,195.35,20.0]
[1735463268534,0.3068288,195.46,195.33,0.76753271]
[1735463269168,0.3068288,195.46,195.37,20.0]
[1735463269364,0.3068288,195.46,195.36,23.776884]
[1735463269660,0.3068288,195.46,195.38,23.776884]
[1735463270656,0.3068288,195.48,195.38,23.776884]
[1735463270846,0.3068288,195.51,195.38,23.776884]
[1735463271777,0.3068288,195.51,195.4,23.776884]
[1735463286156,80.8,195.56,195.4,23.776884]
[1735463286157,8.02917364,195.57,195.4,33.79432392]
[1735463286363,0.3068288,195.56,195.44,43.776884]
[1735463287763,0.3068288,195.57,195.44,43.776884]
[1735463287964,0.3068288,195.57,195.46,23.776884]
[1735463288275,0.3068288,195.57,195.5,23.776884]
[1735463289588,0.3068288,195.57,195.45,7.8625]
[1735463289881,0.3068288,195.57,195.49,23.776884]
[1735463309001,0.3068288,195.57,195.45,7.8625]
[1735463309802,8.33600244,195.57,195.46,23.776884]
[1735463310863,0.3068288,195.57,195.46,23.776884]
[1735463311665,0.3068288,195.57,195.5,23.776884]
[1735463312898,0.3068288,195.57,195.49,20.0]
[1735463312899,0.3068288,195.57,195.45,7.8625]
[1735463313068,0.3068288,195.57,195.48,20.0]
[1735463313272,0.3068288,195.57,195.49,23.776884]
[1735463314470,0.3068288,195.57,195.46,23.776884]
[1735463323204,8.33600244,195.57,195.46,23.776884]
[1735463324784,8.02917364,195.56,195.45,1.6077]
[1735463324984,0.3068288,195.55,195.46,23.776884]
[1735463325500,8.02917364,195.54,195.46,23.776884]
[1735463325695,0.3068288,195.53,195.46,23.776884]
[1735463326204,8.33600244,195.53,195.46,23.776884]
[1735463331502,8.02917364,195.52,195.46,23.776884]
[1735463336801,8.02917364,195.53,195.46,23.776884]
[1735463337515,8.02917364,195.54,195.46,23.776884]
[1735463347830,8.02917364,195.53,195.46,23.776884]
[1735463348030,8.02917364,195.53,195.42,10.01743992]
[1735463348236,0.3068288,195.52,195.42,10.01743992]
[1735463348403,8.33600244,195.53,195.46,43.776884]
[1735463349112,8.02917364,195.52,195.46,43.776884]
[1735463350238,8.02917364,195.51,195.46,43.776884]
[1735463351525,8.02917364,195.52,195.46,43.776884]
[1735463353217,8.02917364,195.54,195.46,43.776884]
[1735463361819,0.3068288,195.53,195.41,6.5437]
[1735463362020,0.3068288,195.53,195.45,20.0]
[1735463362216,8.02917364,195.52,195.46,23.776884]
[1735463363035,8.02917364,195.54,195.48,23.776884]
[1735463368348,8.02917364,195.56,195.48,23.776884]
[1735463371656,8.02917364,195.56,195.53,20.0]
[1735463372026,8.02917364,195.57,195.54,23.776884]
[1735463372970,8.33600244,195.61,195.54,23.776884]
[1735463374058,0.3068288,195.61,195.54,23.776884]
[1735463376463,0.3068288,195.62,195.54,23.776884]
[1735463376628,0.3068288,195.62,195.57,20.0]
[1735463376832,8.02917364,195.63,195.62,23.776884]
[1735463377846,7.09554467,195.68,195.62,23.776884]
[1735463377847,8.02917364,195.74,195.66,20.0]
[1735463378032,8.02917364,195.74,195.67,23.776884]
[1735463378666,22.57687609,195.75,195.67,23.776884]
[1735463378667,6.5185288,195.75,195.67,23.776884]
[1735463378843,6.2117,195.7,195.54,8.05134029]
[1735463379034,20.0,195.67,195.54,8.05134029]
[1735463379233,0.3068288,195.66,195.56,20.0]
[1735463379659,0.3068288,195.66,195.57,23.776884]
[1735463380036,0.3068288,195.66,195.56,23.776884]
[1735463380666,0.3068288,195.69,195.56,23.776884]
[1735463381365,20.0,195.67,195.56,23.776884]
[1735463381548,0.3068288,195.66,195.52,10.01743992]
[1735463381884,0.3068288,195.66,195.53,33.79432392]
[1735463382166,0.3068288,195.66,195.53,10.01743992]
[1735463383453,0.3068288,195.66,195.52,33.79432392]
[1735463385080,20.0,195.65,195.52,33.79432392]
[1735463385269,0.3068288,195.64,195.53,0.76687995]
[1735463392179,0.3068288,195.64,195.54,23.776884]
[1735463392680,0.3068288,195.64,195.54,20.0]
[1735463400887,1.8740288,195.64,195.52,0.76688289]
[1735463401186,6.1682,195.63,195.51,1.6313]
[1735463401488,0.3068288,195.62,195.52,23.776884]
[1735463404397,0.3068288,195.62,195.51,1.6313]
[1735463404398,0.3068288,195.62,195.51,20.0]
[1735463404760,0.3068288,195.62,195.52,23.776884]
[1735463405166,20.0,195.6,195.46,31.66283992]
[1735463405367,0.3068288,195.59,195.46,31.66283992]
[1735463405684,0.3068288,195.59,195.49,20.0]
[1735463405891,0.3068288,195.59,195.5,23.776884]
[1735463406808,0.3068288,195.62,195.5,23.776884]
[1735463422512,0.3068288,195.62,195.53,20.0]
[1735463422687,0.3068288,195.62,195.54,23.776884]
[1735463423013,0.3068288,195.63,195.54,23.776884]
[1735463423312,0.3068288,195.63,195.54,24.54371861]
[1735463423914,82.3672,195.64,195.54,24.54371861]
[1735463424090,1.5672,195.64,195.54,24.54371861]